[Event "Live Chess"]
[Site "Chess.com"]
[Date "2024.06.01"]
[Round "-"]
[White "Zhevzh1k7"]
[Black "EdenHazard8"]
[Result "0-1"]
[WhiteElo "1067"]
[BlackElo "2179"]
[TimeControl "300"]
[EndTime "9:29:44 PDT"]
[Termination "EdenHazard8 won by resignation"]

1. e4 {[%clk 0:04:58.2]} 1... e5 {[%clk 0:04:59.1]} 2. Nf3 {[%clk 0:04:56.8]}
2... Nc6 {[%clk 0:04:58.4]} 3. Bc4 {[%clk 0:04:55.7]} 3... Nf6 {[%clk 0:04:57]}
4. Nc3 {[%clk 0:04:52.8]} 4... Bc5 {[%clk 0:04:55.4]} 5. O-O {[%clk 0:04:49.4]}
5... O-O {[%clk 0:04:52.8]} 6. Re1 {[%clk 0:04:44.2]} 6... d6 {[%clk 0:04:51.4]}
7. d3 {[%clk 0:04:43.2]} 7... a6 {[%clk 0:04:49.9]} 8. a4 {[%clk 0:04:39.2]}
8... h6 {[%clk 0:04:47.8]} 9. h3 {[%clk 0:04:37.4]} 9... Ba7 {[%clk 0:04:46.2]}
10. Be3 {[%clk 0:04:32.1]} 10... Nd4 {[%clk 0:04:44.6]} 11. Nd5 {[%clk
0:04:23.1]} 11... Nxd5 {[%clk 0:04:41.4]} 12. Bxd5 {[%clk 0:04:18.1]} 12... c6
{[%clk 0:04:40]} 13. Nxd4 {[%clk 0:04:12]} 13... exd4 {[%clk 0:04:38.3]} 14.
Bxh6 {[%clk 0:03:56.4]} 14... cxd5 {[%clk 0:04:30.9]} 15. Bf4 {[%clk 0:03:46.9]}
15... dxe4 {[%clk 0:04:27.4]} 16. Rxe4 {[%clk 0:03:43.8]} 16... Qf6 {[%clk
0:04:24.1]} 17. Qf3 {[%clk 0:03:34.4]} 17... Bb8 {[%clk 0:04:13.7]} 18. Rae1
{[%clk 0:03:25.5]} 18... d5 {[%clk 0:04:12.1]} 19. Be5 {[%clk 0:03:06.7]} 19...
Qxf3 {[%clk 0:04:09]} 20. gxf3 {[%clk 0:03:04.5]} 20... dxe4 {[%clk 0:04:07.9]}
21. Bxb8 {[%clk 0:03:02.7]} 21... Rxb8 {[%clk 0:04:06.2]} 22. dxe4 {[%clk
0:03:01]} 22... Bxh3 {[%clk 0:04:03.7]} 23. e5 {[%clk 0:02:59.5]} 23... Bf5
{[%clk 0:04:00.4]} 24. Rc1 {[%clk 0:02:54.1]} 24... Rfc8 {[%clk 0:03:56.9]} 25.
c3 {[%clk 0:02:52]} 25... dxc3 {[%clk 0:03:56.8]} 26. bxc3 {[%clk 0:02:51.9]}
26... Rc4 {[%clk 0:03:55.4]} 27. a5 {[%clk 0:02:48.9]} 27... Rbc8 {[%clk
0:03:54]} 28. Kg2 {[%clk 0:02:46.1]} 28... Rxc3 {[%clk 0:03:52.6]} 29. Rxc3
{[%clk 0:02:45.1]} 29... Rxc3 {[%clk 0:03:52.5]} 30. Kg3 {[%clk 0:02:44.8]}
30... Rc5 {[%clk 0:03:51.3]} 31. f4 {[%clk 0:02:43.1]} 31... Be6 {[%clk
0:03:51.2]} 32. Kf3 {[%clk 0:02:40.5]} 32... Rxa5 {[%clk 0:03:51.1]} 33. Ke4
{[%clk 0:02:38.9]} 33... Ra4+ {[%clk 0:03:50.2]} 34. Kd3 {[%clk 0:02:37.9]}
34... Bf5+ {[%clk 0:03:50.1]} 35. Ke3 {[%clk 0:02:36.9]} 35... Ra3+ {[%clk
0:03:49.1]} 36. Kd4 {[%clk 0:02:35.5]} 36... b5 {[%clk 0:03:48.4]} 37. Kc5
{[%clk 0:02:33.5]} 37... Rf3 {[%clk 0:03:47.6]} 38. Kd5 {[%clk 0:02:31.8]} 38...
Rxf4 {[%clk 0:03:46.8]} 0-1

[Event "Live Chess"]
[Site "Chess.com"]
[Date "2024.06.01"]
[Round "-"]
[White "PedroCI"]
[Black "Countrylife123"]
[Result "1-0"]
[WhiteElo "1266"]
[BlackElo "1215"]
[TimeControl "300"]
[EndTime "9:29:46 PDT"]
[Termination "PedroCI won on time"]

1. e4 {[%clk 0:04:58.1]} 1... c6 {[%clk 0:04:57.9]} 2. Nc3 {[%clk 0:04:53.6]}
2... d5 {[%clk 0:04:56.1]} 3. d4 {[%clk 0:04:52.6]} 3... dxe4 {[%clk 0:04:50.6]}
4. Nxe4 {[%clk 0:04:52.5]} 4... Bf5 {[%clk 0:04:49.3]} 5. Ng3 {[%clk 0:04:50.3]}
5... Bg6 {[%clk 0:04:48]} 6. h4 {[%clk 0:04:48]} 6... h5 {[%clk 0:04:43.6]} 7.
Nf3 {[%clk 0:04:45.7]} 7... Nf6 {[%clk 0:04:25.6]} 8. Bd3 {[%clk 0:04:42.1]}
8... Bxd3 {[%clk 0:04:21.1]} 9. Qxd3 {[%clk 0:04:40.3]} 9... Nbd7 {[%clk
0:04:21]} 10. Bf4 {[%clk 0:04:36.5]} 10... Nd5 {[%clk 0:04:03.5]} 11. Bd2 {[%clk
0:04:30.7]} 11... e6 {[%clk 0:04:01]} 12. c4 {[%clk 0:04:27.2]} 12... N5f6
{[%clk 0:03:54.3]} 13. Bg5 {[%clk 0:04:09.2]} 13... Be7 {[%clk 0:03:38.1]} 14.
c5 {[%clk 0:03:36.9]} 14... Nd5 {[%clk 0:02:53.4]} 15. Bd2 {[%clk 0:03:27.1]}
15... b6 {[%clk 0:02:38.5]} 16. O-O {[%clk 0:03:09.4]} 16... bxc5 {[%clk
0:02:34.3]} 17. dxc5 {[%clk 0:03:05]} 17... Nxc5 {[%clk 0:02:32.8]} 18. Qc2
{[%clk 0:02:47.1]} 18... Qc7 {[%clk 0:02:08.6]} 19. Rfd1 {[%clk 0:02:38.4]}
19... Rb8 {[%clk 0:02:05.3]} 20. a3 {[%clk 0:02:23.9]} 20... Bf6 {[%clk
0:02:02.6]} 21. Rab1 {[%clk 0:02:19.9]} 21... Nb3 {[%clk 0:01:37.3]} 22. Be1
{[%clk 0:01:47.6]} 22... O-O {[%clk 0:01:14.9]} 23. Ne4 {[%clk 0:01:44.8]} 23...
Be5 {[%clk 0:00:58.4]} 24. Neg5 {[%clk 0:01:38.3]} 24... g6 {[%clk 0:00:44.4]}
25. Nxe5 {[%clk 0:01:14.1]} 25... Qxe5 {[%clk 0:00:36.4]} 26. g3 {[%clk
0:01:07.4]} 26... Rfd8 {[%clk 0:00:22.5]} 27. Qxc6 {[%clk 0:00:32.6]} 27... Nd4
{[%clk 0:00:19]} 28. Qc4 {[%clk 0:00:19.6]} 28... Ne2+ {[%clk 0:00:13.7]} 29.
Kg2 {[%clk 0:00:15.8]} 29... Rxb2 {[%clk 0:00:07]} 30. Rxb2 {[%clk 0:00:12.7]}
30... Qxb2 {[%clk 0:00:06.4]} 31. Rd2 {[%clk 0:00:10.8]} 1-0

[Event "Live Chess"]
[Site "Chess.com"]
[Date "2024.06.01"]
[Round "-"]
[White "GwaryTek"]
[Black "CheDA13"]
[Result "0-1"]
[WhiteElo "1967"]
[BlackElo "1506"]
[TimeControl "300"]
[EndTime "9:29:52 PDT"]
[Termination "CheDA13 won on time"]

1. d4 {[%clk 0:04:56.1]} 1... Nf6 {[%clk 0:04:59]} 2. c4 {[%clk 0:04:54.1]} 2...
e6 {[%clk 0:04:55.5]} 3. Nc3 {[%clk 0:04:53.4]} 3... d5 {[%clk 0:04:55.1]} 4.
Nf3 {[%clk 0:04:52.1]} 4... Be7 {[%clk 0:04:52.5]} 5. Bg5 {[%clk 0:04:51.7]}
5... O-O {[%clk 0:04:51.7]} 6. cxd5 {[%clk 0:04:51.2]} 6... exd5 {[%clk
0:04:50.7]} 7. e3 {[%clk 0:04:50.8]} 7... Nbd7 {[%clk 0:04:49.8]} 8. Bd3 {[%clk
0:04:50.3]} 8... c6 {[%clk 0:04:49.2]} 9. Qc2 {[%clk 0:04:49.6]} 9... h6 {[%clk
0:04:46.7]} 10. Bf4 {[%clk 0:04:46.4]} 10... Re8 {[%clk 0:04:39.5]} 11. O-O
{[%clk 0:04:37.9]} 11... Nf8 {[%clk 0:04:35.3]} 12. Rab1 {[%clk 0:04:36.8]}
12... Bd6 {[%clk 0:04:33.9]} 13. Bg3 {[%clk 0:04:35.7]} 13... Bxg3 {[%clk
0:04:31.9]} 14. hxg3 {[%clk 0:04:35.6]} 14... a6 {[%clk 0:04:25.9]} 15. b4
{[%clk 0:04:32]} 15... Bd7 {[%clk 0:04:22.6]} 16. a4 {[%clk 0:04:30.3]} 16...
Qc7 {[%clk 0:04:16.9]} 17. Ne5 {[%clk 0:04:24.6]} 17... Ne6 {[%clk 0:04:06.9]}
18. f4 {[%clk 0:04:22]} 18... h5 {[%clk 0:03:55.1]} 19. Qe2 {[%clk 0:04:14.4]}
19... g6 {[%clk 0:03:37.9]} 20. Kf2 {[%clk 0:04:05.8]} 20... Kg7 {[%clk
0:03:36.2]} 21. Rh1 {[%clk 0:04:04.3]} 21... Rh8 {[%clk 0:03:35.6]} 22. Rh2
{[%clk 0:03:52.4]} 22... Rh7 {[%clk 0:03:30.2]} 23. Rbh1 {[%clk 0:03:50.9]}
23... Rah8 {[%clk 0:03:29.1]} 24. Qc2 {[%clk 0:03:30]} 24... Be8 {[%clk
0:03:26.7]} 25. Rc1 {[%clk 0:02:32]} 25... Nd7 {[%clk 0:03:16.4]} 26. b5 {[%clk
0:02:28.3]} 26... axb5 {[%clk 0:03:11.6]} 27. axb5 {[%clk 0:02:28.2]} 27... Nxe5
{[%clk 0:03:11]} 28. dxe5 {[%clk 0:02:15.5]} 28... h4 {[%clk 0:02:50.5]} 29. g4
{[%clk 0:02:07]} 29... h3 {[%clk 0:02:21]} 30. g3 {[%clk 0:01:49.1]} 30... Rh6
{[%clk 0:02:01.9]} 31. g5 {[%clk 0:01:10.3]} 31... R6h7 {[%clk 0:01:58.5]} 32.
Rch1 {[%clk 0:00:54.5]} 32... cxb5 {[%clk 0:01:45.9]} 33. Nxd5 {[%clk
0:00:47.7]} 33... Qxc2+ {[%clk 0:01:32.4]} 34. Bxc2 {[%clk 0:00:47.6]} 34... Bc6
{[%clk 0:01:15.8]} 35. Be4 {[%clk 0:00:45.9]} 35... Bxd5 {[%clk 0:01:14]} 36.
Bxd5 {[%clk 0:00:44.6]} 36... b6 {[%clk 0:01:13.1]} 37. Rc1 {[%clk 0:00:38.8]}
37... Nc5 {[%clk 0:01:09.7]} 38. Ke2 {[%clk 0:00:30.6]} 38... Rd8 {[%clk
0:01:08.6]} 39. e4 {[%clk 0:00:28.8]} 39... Rd7 {[%clk 0:00:54.4]} 40. Rb1
{[%clk 0:00:27.1]} 40... Ra7 {[%clk 0:00:45.6]} 41. Rxb5 {[%clk 0:00:26]} 41...
Ra2+ {[%clk 0:00:44.6]} 42. Bxa2 {[%clk 0:00:25.1]} 42... Rh8 {[%clk 0:00:42.8]}
43. Rxb6 {[%clk 0:00:22.5]} 43... Nxe4 {[%clk 0:00:41.7]} 44. Kf3 {[%clk
0:00:20.7]} 44... Nc5 {[%clk 0:00:38]} 45. Rc6 {[%clk 0:00:18.3]} 45... Ne6
{[%clk 0:00:37]} 46. Ra6 {[%clk 0:00:16.2]} 46... Re8 {[%clk 0:00:35.1]} 47.
Rxh3 {[%clk 0:00:14.8]} 47... Rc8 {[%clk 0:00:30.6]} 48. Bxe6 {[%clk 0:00:13.1]}
48... Rc3+ {[%clk 0:00:28.6]} 49. Kg4 {[%clk 0:00:11.9]} 49... fxe6 {[%clk
0:00:27.8]} 50. Ra7+ {[%clk 0:00:10.7]} 50... Kg8 {[%clk 0:00:25.6]} 51. Rhh7
{[%clk 0:00:09.7]} 51... Rd3 {[%clk 0:00:19.7]} 52. Rag7+ {[%clk 0:00:06.7]}
52... Kf8 {[%clk 0:00:19.1]} 53. Ra7 {[%clk 0:00:05.9]} 53... Kg8 {[%clk
0:00:18]} 54. Rhb7 {[%clk 0:00:04.8]} 54... Rd8 {[%clk 0:00:16.4]} 55. Ra6
{[%clk 0:00:01.9]} 55... Rf8 {[%clk 0:00:15.5]} 56. Rxe6 {[%clk 0:00:01]} 56...
Rd8 {[%clk 0:00:14]} 57. Rbe7 {[%clk 0:00:00.9]} 57... Rf8 {[%clk 0:00:13.2]}
58. Rxg6+ {[%clk 0:00:00.2]} 58... Kh8 {[%clk 0:00:12]} 0-1

[Event "Live Chess"]
[Site "Chess.com"]
[Date "2024.06.01"]
[Round "-"]
[White "14141409"]
[Black "Inglaterra"]
[Result "1-0"]
[WhiteElo "2561"]
[BlackElo "2037"]
[TimeControl "300"]
[EndTime "9:30:01 PDT"]
[Termination "14141409 won by resignation"]

1. e4 {[%clk 0:04:56.5]} 1... Nf6 {[%clk 0:04:59]} 2. e5 {[%clk 0:04:55.4]} 2...
Nd5 {[%clk 0:04:58.3]} 3. c4 {[%clk 0:04:53.8]} 3... Nb6 {[%clk 0:04:57.3]} 4.
d4 {[%clk 0:04:51.7]} 4... d6 {[%clk 0:04:51.2]} 5. f4 {[%clk 0:04:50.6]} 5...
dxe5 {[%clk 0:04:46.2]} 6. f5 {[%clk 0:04:49.5]} 6... Qxd4 {[%clk 0:04:20.7]} 7.
Qf3 {[%clk 0:04:41.9]} 7... Nc6 {[%clk 0:03:39.5]} 8. Nc3 {[%clk 0:04:39.4]}
8... e6 {[%clk 0:03:27.7]} 9. Be3 {[%clk 0:04:35.9]} 9... Qd8 {[%clk 0:03:15.8]}
10. Rd1 {[%clk 0:04:31.3]} 10... Bd7 {[%clk 0:03:12.1]} 11. fxe6 {[%clk
0:04:27.8]} 11... fxe6 {[%clk 0:03:11.7]} 12. Nh3 {[%clk 0:04:26.7]} 12... Be7
{[%clk 0:03:03.8]} 13. Qh5+ {[%clk 0:04:22.6]} 13... g6 {[%clk 0:03:02.2]} 14.
Qg4 {[%clk 0:04:18]} 14... O-O {[%clk 0:02:58.2]} 15. Bd3 {[%clk 0:04:16.3]}
15... Qe8 {[%clk 0:02:48.3]} 16. Bh6 {[%clk 0:04:12.8]} 16... Rf7 {[%clk
0:02:31.8]} 17. Ne4 {[%clk 0:03:50.4]} 17... Bb4+ {[%clk 0:02:25.9]} 18. Bd2
{[%clk 0:03:48.3]} 18... Bxd2+ {[%clk 0:02:18.5]} 19. Rxd2 {[%clk 0:03:46.3]}
19... Nd4 {[%clk 0:02:08.2]} 20. Nhg5 {[%clk 0:03:42.9]} 20... Rf4 {[%clk
0:02:05.5]} 21. Qh3 {[%clk 0:03:40.6]} 21... Qe7 {[%clk 0:02:00.9]} 22. g3
{[%clk 0:03:32.4]} 22... Rff8 {[%clk 0:01:43.5]} 23. Qh6 {[%clk 0:03:12.4]}
23... Nf5 {[%clk 0:01:25.9]} 24. Qh3 {[%clk 0:03:10.1]} 24... Bc6 {[%clk
0:01:17.2]} 25. Nf3 {[%clk 0:03:07.7]} 25... Qg7 {[%clk 0:01:05.1]} 26. O-O
{[%clk 0:03:04.6]} 26... Rad8 {[%clk 0:01:01.4]} 27. Nfg5 {[%clk 0:02:54.6]}
27... Rfe8 {[%clk 0:00:55.6]} 28. g4 {[%clk 0:01:58.6]} 28... Nd4 {[%clk
0:00:53.2]} 29. Nf6+ {[%clk 0:01:57.1]} 29... Kh8 {[%clk 0:00:48.6]} 30. Nxe8
{[%clk 0:01:54.6]} 30... Rxe8 {[%clk 0:00:48]} 31. Rf7 {[%clk 0:01:42.7]} 31...
Qxf7 {[%clk 0:00:38.9]} 32. Nxf7+ {[%clk 0:01:41.5]} 32... Kg7 {[%clk
0:00:38.5]} 33. Qh6+ {[%clk 0:01:39.8]} 33... Kxf7 {[%clk 0:00:36.7]} 34. Qxh7+
{[%clk 0:01:38.1]} 34... Kf6 {[%clk 0:00:32.6]} 35. Rf2+ {[%clk 0:01:34.7]}
35... Nf3+ {[%clk 0:00:30.4]} 36. Rxf3+ {[%clk 0:01:31.6]} 36... Bxf3 {[%clk
0:00:30.3]} 37. g5+ {[%clk 0:01:31.1]} 37... Kxg5 {[%clk 0:00:28.2]} 38. Qxg6+
{[%clk 0:01:30.2]} 38... Kf4 {[%clk 0:00:27.2]} 39. Qxe8 {[%clk 0:01:28.8]}
39... e4 {[%clk 0:00:25.2]} 40. Bf1 {[%clk 0:01:26.8]} 1-0

[Event "Live Chess"]
[Site "Chess.com"]
[Date "2024.06.01"]
[Round "-"]
[White "McFim"]
[Black "Purple1szed"]
[Result "0-1"]
[WhiteElo "1576"]
[BlackElo "2080"]
[TimeControl "300"]
[EndTime "9:30:10 PDT"]
[Termination "Purple1szed won on time"]

1. e4 {[%clk 0:04:53.7]} 1... e5 {[%clk 0:04:57.6]} 2. Nf3 {[%clk 0:04:52.3]}
2... Nc6 {[%clk 0:04:55.9]} 3. Bb5 {[%clk 0:04:50.7]} 3... g6 {[%clk 0:04:53.1]}
4. O-O {[%clk 0:04:47.5]} 4... Bg7 {[%clk 0:04:47]} 5. d3 {[%clk 0:04:45.1]}
5... Nge7 {[%clk 0:04:40.1]} 6. h3 {[%clk 0:04:43.1]} 6... d6 {[%clk 0:04:32.7]}
7. Nc3 {[%clk 0:04:41.3]} 7... O-O {[%clk 0:04:30.2]} 8. Bg5 {[%clk 0:04:17.9]}
8... h6 {[%clk 0:04:27.6]} 9. Be3 {[%clk 0:04:15.6]} 9... f5 {[%clk 0:04:23.3]}
10. exf5 {[%clk 0:03:43.7]} 10... Nxf5 {[%clk 0:04:20.7]} 11. Bd2 {[%clk
0:03:39.3]} 11... Ncd4 {[%clk 0:04:16.2]} 12. Nxd4 {[%clk 0:03:34.1]} 12... Nxd4
{[%clk 0:04:16.1]} 13. Bc4+ {[%clk 0:03:29.5]} 13... Kh7 {[%clk 0:04:12.9]} 14.
Ne2 {[%clk 0:03:13.1]} 14... Nf3+ {[%clk 0:03:28.7]} 15. gxf3 {[%clk 0:03:10.7]}
15... Bxh3 {[%clk 0:03:27.9]} 16. Re1 {[%clk 0:02:54.2]} 16... Rxf3 {[%clk
0:03:11.6]} 17. Ng3 {[%clk 0:02:52.2]} 17... Qf6 {[%clk 0:02:52.5]} 18. Qe2
{[%clk 0:02:26]} 18... Rf8 {[%clk 0:02:50.6]} 19. Be3 {[%clk 0:01:42.5]} 19...
c6 {[%clk 0:02:21.6]} 20. c3 {[%clk 0:00:50.4]} 20... d5 {[%clk 0:02:17.7]} 21.
Bb3 {[%clk 0:00:49]} 21... Qh4 {[%clk 0:02:08.5]} 22. Bc2 {[%clk 0:00:37.8]}
22... d4 {[%clk 0:01:54.5]} 23. cxd4 {[%clk 0:00:31.4]} 23... exd4 {[%clk
0:01:54.4]} 24. Bc1 {[%clk 0:00:22.1]} 24... Rxg3+ {[%clk 0:01:39]} 25. fxg3
{[%clk 0:00:20.5]} 25... Qxg3+ {[%clk 0:01:38.9]} 26. Kh1 {[%clk 0:00:19.9]}
26... Rf2 {[%clk 0:01:37.6]} 27. Qxf2 {[%clk 0:00:09.9]} 27... Qxf2 {[%clk
0:01:37.5]} 28. Rg1 {[%clk 0:00:09.3]} 28... Qf3+ {[%clk 0:01:37.1]} 29. Kh2
{[%clk 0:00:08.1]} 29... Be5+ {[%clk 0:01:36.8]} 0-1

[Event "Live Chess"]
[Site "Chess.com"]
[Date "2024.06.01"]
[Round "-"]
[White "vincents82"]
[Black "Berdgross"]
[Result "1-0"]
[WhiteElo "2150"]
[BlackElo "579"]
[TimeControl "300"]
[EndTime "9:30:21 PDT"]
[Termination "vincents82 won by resignation"]

1. e4 {[%clk 0:04:56.4]} 1... e5 {[%clk 0:04:56.7]} 2. Nf3 {[%clk 0:04:50]} 2...
d6 {[%clk 0:04:53.5]} 3. d4 {[%clk 0:04:48.4]} 3... exd4 {[%clk 0:04:45.8]} 4.
Nxd4 {[%clk 0:04:47.1]} 4... Nf6 {[%clk 0:04:42.5]} 5. Nc3 {[%clk 0:04:45.8]}
5... h6 {[%clk 0:04:38.2]} 6. Be2 {[%clk 0:04:41.8]} 6... c5 {[%clk 0:04:32.2]}
7. Nf3 {[%clk 0:04:36.5]} 7... Qe7 {[%clk 0:04:25.5]} 8. Bd3 {[%clk 0:04:26.8]}
8... Bg4 {[%clk 0:04:19.9]} 9. O-O {[%clk 0:04:25.2]} 9... Bxf3 {[%clk
0:04:18.4]} 10. Qxf3 {[%clk 0:04:23.9]} 10... Nc6 {[%clk 0:04:12.7]} 11. Bf4
{[%clk 0:04:16]} 11... g5 {[%clk 0:04:07.6]} 12. Nd5 {[%clk 0:04:07.4]} 12...
Nxd5 {[%clk 0:04:04.6]} 13. exd5 {[%clk 0:04:07.2]} 13... Nd4 {[%clk 0:03:58.5]}
14. Qh5 {[%clk 0:03:47.5]} 14... Qf6 {[%clk 0:03:42.9]} 15. Rfe1+ {[%clk
0:03:41.1]} 15... Be7 {[%clk 0:03:40.6]} 16. Bd2 {[%clk 0:03:35.7]} 16... O-O-O
{[%clk 0:03:24.2]} 17. c3 {[%clk 0:03:34.5]} 17... Nb5 {[%clk 0:03:16.8]} 18.
Bxb5 {[%clk 0:03:31.6]} 18... Rde8 {[%clk 0:03:12.3]} 19. Bxe8 {[%clk
0:03:29.8]} 19... Rxe8 {[%clk 0:03:10.7]} 1-0

[Event "Live Chess"]
[Site "Chess.com"]
[Date "2024.06.01"]
[Round "-"]
[White "Demyan7777"]
[Black "matt1979"]
[Result "1-0"]
[WhiteElo "1693"]
[BlackElo "1361"]
[TimeControl "300"]
[EndTime "9:30:25 PDT"]
[Termination "Demyan7777 won by resignation"]

1. e4 {[%clk 0:04:57.2]} 1... d6 {[%clk 0:04:57.8]} 2. d4 {[%clk 0:04:55.2]}
2... Nf6 {[%clk 0:04:56]} 3. Nc3 {[%clk 0:04:53.8]} 3... Nbd7 {[%clk 0:04:54.1]}
4. f4 {[%clk 0:04:52.7]} 4... e5 {[%clk 0:04:52.9]} 5. fxe5 {[%clk 0:04:51]}
5... dxe5 {[%clk 0:04:51]} 6. d5 {[%clk 0:04:49.5]} 6... Bb4 {[%clk 0:04:44.7]}
7. Bd3 {[%clk 0:04:46.2]} 7... O-O {[%clk 0:04:41.1]} 8. Nf3 {[%clk 0:04:43.5]}
8... c6 {[%clk 0:04:38.6]} 9. dxc6 {[%clk 0:04:40.4]} 9... bxc6 {[%clk
0:04:36.5]} 10. O-O {[%clk 0:04:37.3]} 10... Qb6+ {[%clk 0:04:28.1]} 11. Kh1
{[%clk 0:04:32.6]} 11... Bxc3 {[%clk 0:04:26.9]} 12. bxc3 {[%clk 0:04:30.5]}
12... Bb7 {[%clk 0:04:22]} 13. Qe1 {[%clk 0:04:26.2]} 13... Qc7 {[%clk
0:04:15.3]} 14. Bg5 {[%clk 0:04:23.3]} 14... h6 {[%clk 0:04:13.1]} 15. Be3
{[%clk 0:04:18.6]} 15... a6 {[%clk 0:03:59.6]} 16. Qg3 {[%clk 0:04:17.2]} 16...
Nh5 {[%clk 0:03:46.1]} 17. Qh4 {[%clk 0:04:10.2]} 17... Nf4 {[%clk 0:03:18.1]}
18. Bxf4 {[%clk 0:04:07.2]} 18... exf4 {[%clk 0:03:16.7]} 19. Nd4 {[%clk
0:04:06.5]} 19... Nf6 {[%clk 0:03:07.8]} 20. Nf5 {[%clk 0:04:03.1]} 20... c5
{[%clk 0:02:59.9]} 21. Nxh6+ {[%clk 0:04:00.7]} 21... gxh6 {[%clk 0:02:55.7]}
22. Qxf6 {[%clk 0:04:00]} 22... Qc6 {[%clk 0:02:30]} 23. Qxf4 {[%clk 0:03:53.2]}
23... f5 {[%clk 0:02:18.3]} 24. Bc4+ {[%clk 0:03:49.7]} 24... Kh7 {[%clk
0:02:12.8]} 25. Bd5 {[%clk 0:03:48.3]} 25... Qg6 {[%clk 0:02:08]} 26. Bxb7
{[%clk 0:03:44.5]} 26... Rg8 {[%clk 0:02:06.3]} 27. exf5 {[%clk 0:03:41.7]}
27... Qg7 {[%clk 0:02:01.2]} 28. Bxa8 {[%clk 0:03:38.9]} 28... Rxa8 {[%clk
0:01:57.6]} 29. f6 {[%clk 0:03:37.8]} 29... Qg6 {[%clk 0:01:56.2]} 30. f7 {[%clk
0:03:34.6]} 30... Rf8 {[%clk 0:01:54.9]} 31. Rae1 {[%clk 0:03:31.4]} 31... Kg7
{[%clk 0:01:50.4]} 32. Re7 {[%clk 0:03:29.5]} 1-0

[Event "Live Chess"]
[Site "Chess.com"]
[Date "2024.06.01"]
[Round "-"]
[White "RamsayFlayer"]
[Black "Yegorych"]
[Result "1-0"]
[WhiteElo "1967"]
[BlackElo "1506"]
[TimeControl "300"]
[EndTime "9:30:37 PDT"]
[Termination "RamsayFlayer won on time"]

1. e4 {[%clk 0:04:58.5]} 1... c5 {[%clk 0:04:48.7]} 2. c3 {[%clk 0:04:56.9]}
2... d5 {[%clk 0:04:42.2]} 3. exd5 {[%clk 0:04:55.6]} 3... Qxd5 {[%clk
0:04:38.4]} 4. d4 {[%clk 0:04:53.3]} 4... Nf6 {[%clk 0:04:30.7]} 5. Nf3 {[%clk
0:04:50.5]} 5... cxd4 {[%clk 0:04:27.3]} 6. cxd4 {[%clk 0:04:50.4]} 6... e6
{[%clk 0:04:19.2]} 7. Nc3 {[%clk 0:04:49.8]} 7... Qd6 {[%clk 0:04:17.1]} 8. Nb5
{[%clk 0:04:36.4]} 8... Qd8 {[%clk 0:04:07.2]} 9. Bf4 {[%clk 0:04:33.7]} 9...
Nd5 {[%clk 0:03:59.8]} 10. Bg3 {[%clk 0:03:51.7]} 10... Qa5+ {[%clk 0:03:51.5]}
11. Qd2 {[%clk 0:03:46.7]} 11... Bb4 {[%clk 0:03:46.5]} 12. Nd6+ {[%clk
0:03:25.5]} 12... Kf8 {[%clk 0:03:20.6]} 13. Nxc8 {[%clk 0:03:19.6]} 13... Bxd2+
{[%clk 0:03:18.5]} 14. Nxd2 {[%clk 0:03:19.2]} 14... Nc6 {[%clk 0:03:09.6]} 15.
Nd6 {[%clk 0:03:09.4]} 15... Nxd4 {[%clk 0:02:53.4]} 16. Nc4 {[%clk 0:02:44.5]}
16... Qc5 {[%clk 0:02:30.9]} 17. Bd6+ {[%clk 0:02:35.5]} 17... Qxd6 {[%clk
0:02:29.7]} 18. Nxd6 {[%clk 0:02:35.1]} 18... Nc2+ {[%clk 0:02:28.2]} 19. Kd1
{[%clk 0:02:33.6]} 19... Nxa1 {[%clk 0:02:26.2]} 20. Bd3 {[%clk 0:02:25.9]}
20... Ke7 {[%clk 0:02:22.7]} 21. N2c4 {[%clk 0:02:02.1]} 21... b5 {[%clk
0:02:16.2]} 22. Nxb5 {[%clk 0:01:59.6]} 22... Rhc8 {[%clk 0:02:00.7]} 23. Kd2
{[%clk 0:01:52]} 23... Nb3+ {[%clk 0:01:47.1]} 24. axb3 {[%clk 0:01:50.5]} 24...
Nb4 {[%clk 0:01:35.3]} 25. Be4 {[%clk 0:01:20.5]} 25... Rd8+ {[%clk 0:01:30.3]}
26. Ke2 {[%clk 0:01:15]} 26... Rab8 {[%clk 0:01:22.4]} 27. Nxa7 {[%clk
0:01:11.6]} 27... Rbc8 {[%clk 0:01:03.3]} 28. Rd1 {[%clk 0:01:03.5]} 28... Rxd1
{[%clk 0:01:00.6]} 29. Kxd1 {[%clk 0:01:03]} 29... Rd8+ {[%clk 0:00:58.9]} 30.
Ke2 {[%clk 0:01:01.6]} 30... Rd7 {[%clk 0:00:54.1]} 31. Nc6+ {[%clk 0:00:58.7]}
31... Nxc6 {[%clk 0:00:49.5]} 32. Bxc6 {[%clk 0:00:58.6]} 32... Rd8 {[%clk
0:00:44.2]} 33. b4 {[%clk 0:00:47.2]} 33... f6 {[%clk 0:00:41.5]} 34. b5 {[%clk
0:00:45.9]} 34... Rd4 {[%clk 0:00:39.7]} 35. b3 {[%clk 0:00:43.6]} 35... Kd8
{[%clk 0:00:35.7]} 36. b6 {[%clk 0:00:40.4]} 36... Kc8 {[%clk 0:00:31.4]} 37.
Ke3 {[%clk 0:00:31.8]} 37... Rd8 {[%clk 0:00:27.4]} 38. Na5 {[%clk 0:00:26]}
38... Rd6 {[%clk 0:00:24]} 39. b7+ {[%clk 0:00:24.5]} 39... Kb8 {[%clk
0:00:21.3]} 40. Be4 {[%clk 0:00:20]} 40... f5 {[%clk 0:00:19.9]} 41. Bf3 {[%clk
0:00:16.5]} 41... Rb6 {[%clk 0:00:18.2]} 42. Kd4 {[%clk 0:00:13.6]} 42... Rb4+
{[%clk 0:00:16.2]} 43. Kc3 {[%clk 0:00:12.8]} 43... Rb6 {[%clk 0:00:15]} 44. Kc4
{[%clk 0:00:11.9]} 44... Ra6 {[%clk 0:00:12.4]} 45. b4 {[%clk 0:00:11.5]} 45...
Rd6 {[%clk 0:00:10.6]} 46. Kb5 {[%clk 0:00:11.1]} 46... g5 {[%clk 0:00:08.5]}
47. Kc5 {[%clk 0:00:09.9]} 47... Ra6 {[%clk 0:00:07.2]} 48. Nc6+ {[%clk
0:00:07.9]} 48... Kxb7 {[%clk 0:00:05.2]} 49. b5 {[%clk 0:00:07.3]} 49... Ra5
{[%clk 0:00:03.8]} 50. Nxa5+ {[%clk 0:00:04.9]} 50... Kb8 {[%clk 0:00:02.9]} 51.
Nc4 {[%clk 0:00:04.8]} 51... g4 {[%clk 0:00:01.5]} 52. Nd6 {[%clk 0:00:04.7]}
52... gxf3 {[%clk 0:00:00.2]} 53. gxf3 {[%clk 0:00:03.8]} 1-0